bitfinex-derivatives/quotes_ETHF0:USTF0_20210403
["timestamp","ask_amount","ask_price","bid_price","bid_amount"]
[1617435509548,24.0,2115.1,2115.0,5.42267914]
[1617435509748,24.0,2115.1,2115.0,3.04587914]
[1617435511152,24.0,2115.1,2115.0,11.28673521]
[1617435511951,24.0,2115.1,2115.0,4.62167914]
[1617435513056,24.0,2115.1,2115.0,3.04587914]
[1617435527975,24.0,2115.1,2115.0,5.37877914]
[1617435536784,24.0,2115.1,2115.0,3.04587914]
[1617435554517,25.6996,2115.1,2115.0,3.04587914]
[1617435558623,24.0,2115.1,2115.0,3.04587914]
[1617435565339,24.0,2115.1,2115.0,13.54564769]
[1617435565939,24.0,2115.1,2115.0,13.40671855]
[1617435566340,24.0,2115.1,2115.0,13.54566603]
[1617435567042,24.0,2115.1,2115.0,3.04589748]
[1617435567947,24.0,2115.1,2115.0,13.55584594]
[1617435568546,24.0,2115.1,2115.0,3.04589748]
[1617435570446,24.0,2115.1,2115.0,13.55877007]
[1617435570847,24.0,2115.1,2115.0,3.04589748]
[1617435571148,24.0,2115.1,2115.0,13.55958389]
[1617435578963,24.0,2115.1,2115.0,3.04589748]
[1617435591876,24.0,2115.1,2115.0,13.57041283]
[1617435592180,24.0,2115.1,2115.0,3.04589748]
[1617435609906,23.97600507,2115.1,2115.0,3.04589748]
[1617435618310,23.97600507,2115.1,2115.0,12.4626756]
[1617435621819,23.97600507,2115.1,2115.0,3.04589748]
[1617435622223,23.97600507,2115.1,2115.0,12.47010265]
[1617435622421,23.97600507,2115.1,2115.0,3.04589748]
[1617435622622,23.97600507,2115.1,2115.0,2.90695]
[1617435634036,23.97600507,2115.1,2115.0,2.40695]
[1617435639242,23.97600507,2115.1,2115.0,2.54592337]
[1617435644551,23.97600507,2115.1,2115.0,2.40695]
[1617435647158,23.97600507,2115.1,2115.0,2.54592735]
[1617435657175,23.97600507,2115.1,2115.0,2.53282916]
[1617435668989,26.28270507,2115.1,2115.0,2.53282916]
[1617435669389,26.28270507,2115.1,2115.0,10.69296191]
[1617435669891,26.28270507,2115.1,2115.0,2.39385181]
[1617435689227,26.28270507,2115.1,2115.0,9.56968058]
[1617435689429,26.28270507,2115.1,2115.0,2.39385181]
[1617435699542,26.28270507,2115.1,2115.0,8.45706198]
[1617435701742,26.28270507,2115.1,2115.0,6.06321017]
[1617435702142,29.18965507,2115.1,2115.0,6.06321017]
[1617435702743,29.18965507,2115.1,2115.0,4.96274246]
[1617435703743,29.18965507,2115.1,2114.9,4.96466592]
[1617435704444,29.18965507,2115.1,2114.8,4.9660683]
[1617435705043,29.18965507,2115.1,2114.7,4.96804027]
[1617435705343,29.18965507,2115.1,2114.6,2.90695]
[1617435705544,61.1069,2114.8,2114.6,2.90695]
[1617435706046,2.90695,2114.7,2114.6,2.90695]
[1617435708749,2.90695,2114.7,2114.4,4.95768196]
[1617435709149,2.90695,2114.7,2114.3,4.95821835]
[1617435710150,2.90695,2114.4,2114.3,4.95821835]
[1617435710350,5.26895,2114.4,2114.3,4.95821835]
[1617435713255,5.26895,2114.4,2114.2,4.95984277]
[1617435713654,5.26895,2114.4,2114.1,4.96116957]
[1617435715154,5.26895,2114.4,2114.2,4.95905469]
[1617435715559,5.26895,2114.4,2114.1,4.95899283]
[1617435716659,5.26895,2114.4,2113.9,2.90695]
[1617435718260,2.90695,2114.0,2113.9,2.90695]
[1617435720264,2.90695,2114.0,2113.6,4.94847247]
[1617435720865,2.90695,2114.0,2113.5,4.94963664]
[1617435721668,2.90695,2114.0,2113.6,4.94951386]
[1617435722369,2.0,2114.5,2113.8,2.90695]
[1617435723371,69.096,2114.1,2113.8,2.90695]
[1617435724271,2.90695,2113.9,2113.8,2.90695]
[1617435730175,2.90695,2113.9,2113.1,4.9432036]
[1617435730375,69.096,2114.1,2113.2,2.90695]
[1617435732278,2.90695,2113.3,2113.2,2.90695]
[1617435766112,4.46545,2113.3,2113.2,2.90695]
[1617435769918,2.90695,2113.3,2113.2,2.90695]
[1617435778026,4.77295,2113.3,2113.2,2.90695]
[1617435784835,4.77295,2113.3,2113.2,7.87988293]
[1617435786335,4.77295,2113.3,2113.2,2.90695]
[1617435788037,4.77295,2113.3,2113.2,7.87878491]
[1617435789341,4.77295,2113.3,2113.2,2.90695]
[1617435791246,4.77295,2113.3,2113.2,7.88027794]
[1617435792745,4.77295,2113.3,2113.2,2.90695]
[1617435793447,1.866,2113.3,2113.1,4.97210334]
[1617435793646,1.727,2113.9,2113.1,4.97210334]
[1617435793847,84.3072,2114.1,2113.1,4.97210334]
[1617435794149,2.90695,2113.2,2113.1,4.97210334]
[1617435794350,2.90695,2113.2,2113.0,8.9832479]
[1617435795351,2.90695,2113.2,2113.0,2.90695]
[1617435797454,2.90695,2113.2,2113.1,6.0852509]
[1617435798054,2.90695,2113.2,2113.0,2.90695]
[1617435798557,2.90695,2113.2,2113.1,6.08674576]
[1617435801360,2.90695,2113.2,2113.0,2.90695]
[1617435802860,2.90695,2113.2,2113.1,6.09465418]
[1617435806362,2.90695,2113.2,2113.0,2.90695]
[1617435811370,2.90695,2113.2,2113.0,10.1152975]
[1617435815879,2.90695,2113.2,2113.0,2.90695]
[1617435816079,67.8307,2114.1,2112.8,8.32287081]
[1617435816487,67.8307,2114.1,2113.3,2.90695]
[1617435816686,67.8307,2114.1,2113.9,4.99454979]
[1617435817687,67.8307,2114.1,2113.8,4.99436743]
[1617435818487,2.90695,2113.9,2113.8,4.99436743]
[1617435818787,2.90695,2113.9,2113.3,2.90695]
[1617435818788,2.90695,2113.9,2113.7,4.99486283]
[1617435826298,2.90695,2113.9,2113.8,4.99449146]
[1617435835908,2.90695,2113.9,2113.7,4.98902413]
[1617435836208,4.90695,2113.9,2113.7,4.98902413]
[1617435837712,4.90695,2113.9,2113.8,4.99067841]
[1617435838312,4.90695,2113.9,2113.7,4.98991523]
[1617435842114,2.90695,2113.9,2113.7,4.98991523]
[1617435847218,4.90695,2113.9,2113.7,4.98991523]
[1617435850220,4.90695,2113.9,2113.8,4.99006322]
[1617435851521,2.90695,2113.9,2113.8,4.99006322]
[1617435852120,75.242,2114.2,2113.8,4.99006322]
[1617435853021,2.90695,2113.9,2113.8,4.99006322]
[1617435853820,2.90695,2113.9,2113.7,6.09643668]
[1617435854925,2.90695,2113.9,2113.6,9.00361942]
[1617435856027,2.90695,2113.9,2113.7,6.09716537]
[1617435856227,2.90695,2113.9,2113.6,9.0041955]
[1617435856828,2.90695,2113.9,2113.7,6.09647371]
[1617435858634,2.90695,2113.9,2113.8,4.9873293]
[1617435859437,2.90695,2113.9,2113.6,6.0956247]
[1617435860041,2.90695,2113.9,2113.7,6.09524022]
[1617435867044,2.90695,2113.9,2113.8,6.09446274]
[1617435868755,2.90695,2113.9,2113.7,6.09498396]
[1617435868949,2.90695,2113.9,2113.8,6.09455515]
[1617435875564,2.90695,2113.9,2113.4,7.20107135]
[1617435876165,2.90695,2113.9,2113.8,6.09100188]
[1617435876867,2.90695,2113.9,2113.5,7.19774353]
[1617435877165,2.90695,2113.9,2113.4,7.1977861]
[1617435877467,2.90695,2113.5,2113.4,7.1977861]
[1617435877866,2.90695,2113.5,2113.3,2.90695]
[1617435878266,2.90695,2113.5,2113.4,7.19451614]
[1617435883671,2.90695,2113.5,2113.3,10.10079027]
[1617435884171,2.90695,2113.5,2113.4,7.19219815]
[1617435886572,2.90695,2113.5,2113.3,2.90695]
[1617435886775,4.45085,2113.5,2113.3,2.90695]
[1617435886976,4.45085,2113.5,2113.4,7.19158852]
[1617435891478,4.45085,2113.5,2113.3,10.0966275]
[1617435895685,2.90695,2113.5,2113.3,10.0966275]
[1617435903703,2.90695,2113.5,2113.3,2.90695]
[1617435904602,5.22295,2113.5,2113.3,2.90695]
[1617435907004,5.22295,2113.5,2113.1,7.18121081]
[1617435907204,5.22295,2113.5,2113.4,6.07837697]
[1617435915518,5.22295,2113.5,2113.3,6.0840561]
[1617435918426,5.22295,2113.5,2113.2,6.08695894]
[1617435919527,5.22295,2113.5,2113.3,4.98459764]
[1617435919827,5.22295,2113.5,2113.2,4.98598346]
[1617435922630,5.22295,2113.5,2113.0,4.97652139]
[1617435924031,2.90695,2113.1,2113.0,4.97652139]
[1617435926033,2.90695,2113.1,2113.0,7.88347139]
[1617435926936,2.90695,2113.1,2113.0,4.97652139]
[1617435933541,2.90695,2113.1,2112.9,7.88488238]
[1617435935241,2.90695,2113.1,2112.9,4.97793238]
[1617435937750,2.90695,2113.1,2112.8,4.97965902]
[1617435938048,2.90695,2113.1,2112.9,4.97923949]
[1617435940149,2.90695,2113.1,2113.0,2.90695]
[1617435950162,2.90695,2113.1,2113.0,4.76105]
[1617435950363,2.90695,2113.1,2113.0,9.73547519]
[1617435950664,2.90695,2113.1,2113.0,4.76105]
[1617435953365,2.90695,2113.1,2113.0,2.90695]
[1617435954568,2.90695,2113.1,2113.0,7.88300021]
[1617435954768,2.90695,2113.1,2113.0,2.90695]
[1617435955769,2.90695,2113.1,2112.8,4.97875475]
[1617435956270,2.90695,2113.1,2112.8,7.88570475]
[1617435956570,2.90695,2113.1,2112.8,2.90695]
[1617435957676,2.90695,2113.1,2112.8,7.88458899]
[1617435964684,2.90695,2113.1,2112.8,2.90695]
[1617435965784,2.90695,2113.1,2112.7,4.97919483]
[1617435966384,4.80175,2112.8,2112.7,4.97919483]
[1617435966586,4.80175,2112.8,2112.6,4.9804412]
[1617435967189,4.80175,2112.8,2112.4,4.98075535]
[1617435967589,4.80175,2112.8,2112.2,4.98219685]
[1617435968391,2.90695,2112.3,2112.2,4.98219685]
[1617435969692,5.16095,2112.3,2112.2,4.98219685]
[1617435972094,5.16095,2112.3,2112.0,8.99630171]
[1617435972294,5.16095,2112.3,2112.2,4.98322053]
[1617435973294,5.16095,2112.3,2112.0,8.99630171]
[1617435973696,5.16095,2112.3,2112.1,6.09027787]
[1617435976598,5.16095,2112.3,2112.2,4.985612]
[1617435978901,5.16095,2112.3,2112.1,4.98416002]
[1617435979600,5.16095,2112.3,2112.2,4.98586434]
[1617435980902,5.16095,2112.3,2112.1,6.09191627]
[1617435981102,5.16095,2112.3,2112.0,2.90695]
[1617435981103,5.16095,2112.3,2112.2,6.09149733]
[1617435982106,5.16095,2112.3,2112.1,6.09183416]
[1617435982604,2.90695,2112.3,2112.1,6.09183416]
[1617435988913,2.90695,2112.3,2112.0,9.00378523]
[1617435989212,2.90695,2112.3,2112.1,6.09668667]
[1617435990313,2.90695,2112.3,2112.0,2.90695]
[1617435993220,2.8912066,2112.3,2112.0,2.90695]
[1617436000030,2.8912066,2112.3,2112.2,6.10387056]
[1617436000731,2.8912066,2112.3,2112.0,10.12646061]
[1617436001832,2.8912066,2112.3,2112.0,2.90695]
[1617436004831,2.8912066,2112.3,2112.0,10.12645759]
[1617436005832,2.8912066,2112.3,2112.0,2.90695]
[1617436006835,2.8912066,2112.3,2112.0,10.12643166]
[1617436009241,2.8912066,2112.3,2112.0,2.90695]
[1617436012746,2.8912066,2112.3,2112.2,6.10865616]
[1617436014150,2.8912066,2112.3,2112.0,2.90695]
[1617436024663,5.0729066,2112.3,2111.9,7.21932271]
[1617436025164,2.90695,2112.0,2111.9,7.21932271]
[1617436025365,2.90695,2112.0,2111.8,7.20274258]
[1617436027067,2.90695,2112.0,2111.9,7.20225837]
[1617436027566,2.90695,2112.0,2111.8,7.20214186]
[1617436030279,2.90695,2112.0,2111.7,10.10871322]
[1617436034382,2.90695,2112.0,2111.9,6.08290562]
[1617436034784,2.90695,2112.0,2111.7,2.90695]
[1617436035283,2.90695,2112.0,2111.5,7.19322947]
[1617436035583,2.90695,2112.0,2111.9,6.08717902]
[1617436036685,4.90695,2112.0,2111.8,6.0868181]
[1617436037386,34.90695,2112.0,2111.8,6.0868181]
[1617436037588,34.90695,2112.0,2111.9,4.98163417]
[1617436037886,34.90695,2112.0,2111.8,4.98244672]
[1617436040490,34.90695,2112.0,2111.4,4.97348914]
[1617436041294,2.90695,2111.5,2111.4,4.97348914]
[1617436042294,2.90695,2111.5,2111.3,4.97511351]
[1617436042493,2.90695,2111.5,2111.3,3.83911351]
[1617436042694,2.0,2111.4,2110.9,8.99043007]
[1617436043293,2.90695,2111.0,2110.9,2.90695]
[1617436043494,4.69325,2111.0,2110.9,2.90695]
[1617436044393,4.69325,2111.0,2110.7,6.0882055]
[1617436045894,4.69325,2111.0,2110.6,8.99381795]
[1617436046395,4.69325,2111.0,2110.7,6.08936868]
[1617436047896,4.69325,2111.0,2110.6,8.99670102]
[1617436049500,2.90695,2110.7,2110.6,8.99670102]
[1617436049700,2.90695,2110.7,2110.6,2.90695]
[1617436050199,2.90695,2110.7,2110.5,1.0]
[1617436050400,2.90695,2110.7,2110.6,6.08983487]
[1617436050802,2.90695,2110.7,2110.5,7.0910536]
[1617436051904,2.90695,2110.7,2110.5,1.0]
[1617436055809,2.0,2110.6,2110.5,1.0]
[1617436056509,32.0,2110.6,2109.8,4.97107477]
[1617436057116,32.0,2110.6,2109.6,2.90695]
[1617436057513,5.11085,2109.7,2109.4,4.97554614]
[1617436057713,5.11085,2109.7,2109.3,7.8833058]
[1617436059515,2.90695,2109.4,2109.3,7.8833058]
[1617436060616,2.90695,2109.4,2109.3,2.90695]
[1617436084560,2.90695,2109.4,2109.3,4.71505]
[1617436085061,14.0624,2110.5,2109.3,4.71505]
[1617436085662,14.0624,2110.5,2109.8,2.90695]
[1617436087665,2.90695,2109.9,2109.8,2.90695]
[1617436090965,16.1101,2111.4,2109.8,4.44535]
[1617436091766,16.1101,2111.4,2110.9,2.90695]
[1617436093768,2.90695,2111.0,2110.9,2.90695]
[1617436094166,2.90695,2111.0,2110.6,1.8997]
[1617436094867,2.90695,2111.0,2109.8,1.5384]
[1617436095768,13.5391,2111.4,2110.6,2.90695]
[1617436097170,13.5391,2111.4,2109.3,1.8081]
[1617436097470,15.0599,2111.4,2108.6,4.94583965]
[1617436097670,2.0,2111.3,2108.6,4.94583965]
[1617436097871,2.0,2111.3,2110.2,2.90695]
[1617436098574,2.0,2111.3,2108.9,2.38]
[1617436099874,2.0,2111.3,2110.1,2.90695]
[1617436100173,32.0,2111.3,2110.1,2.90695]
[1617436100374,32.0,2111.3,2108.8,4.94799353]
[1617436100773,32.0,2111.3,2108.9,0.13934723]
[1617436101877,34.571,2111.3,2109.2,2.90695]
[1617436102575,34.571,2111.3,2108.3,4.9559757]
[1617436102775,34.571,2111.3,2108.2,4.95633272]
[1617436103176,34.571,2111.3,2108.3,0.13938805]
[1617436103675,34.571,2111.3,2108.2,0.13939077]
[1617436103975,34.571,2111.3,2108.9,2.90695]
[1617436104577,71.4909,2110.6,2108.9,2.90695]
[1617436104778,34.2121,2110.5,2108.9,2.90695]
[1617436105782,2.90695,2109.0,2108.9,2.90695]
[1617436110289,4.95385,2109.0,2108.9,2.90695]
[1617436127613,4.95385,2109.0,2108.5,4.97412679]
[1617436128013,2.90695,2108.6,2108.5,4.97412679]
[1617436128213,2.90695,2108.6,2108.4,2.90695]
[1617436128214,2.90695,2108.6,2108.4,7.88129187]
[1617436128413,2.90695,2108.6,2108.4,2.90695]
[1617436130715,2.90695,2108.6,2108.4,9.00223086]
[1617436131515,2.90695,2108.6,2108.5,4.9870851]
[1617436131918,2.90695,2108.6,2108.4,2.90695]
[1617436143933,13.83,2109.5,2108.4,2.90695]
[1617436144132,13.83,2109.5,2108.8,2.90695]
[1617436146130,2.90695,2108.9,2108.8,2.90695]
[1617436173870,64.2425,2109.2,2108.8,2.90695]
[1617436174272,2.571,2109.8,2108.8,4.75965]
[1617436174470,2.571,2109.8,2109.1,2.90695]
[1617436174672,2.571,2109.8,2109.1,7.88708965]
[1617436174875,2.571,2109.8,2109.2,4.9800631]
[1617436175774,4.9395,2109.8,2109.1,7.88712868]
[1617436176475,4.9395,2109.8,2109.5,2.90695]
[1617436178377,2.90695,2109.6,2109.5,2.90695]
[1617436179080,4.9395,2109.8,2109.5,2.90695]
[1617436180380,7.84645,2109.8,2109.5,2.90695]
[1617436180985,7.84645,2109.8,2109.1,4.98196701]
[1617436181190,7.84645,2109.8,2109.0,4.98221599]
[1617436181891,7.84645,2109.8,2109.2,4.9817317]
[1617436182495,7.84645,2109.8,2109.7,2.90695]
[1617436183193,7.84645,2109.8,2109.7,5.27395]
[1617436186497,7.84645,2109.8,2109.7,2.90695]
[1617436187599,2.571,2109.8,2109.7,2.90695]
[1617436189505,7.669,2111.0,2109.7,2.90695]
[1617436190107,7.669,2111.0,2110.5,4.98936461]
[1617436190306,7.669,2111.0,2110.5,7.32046461]
[1617436190509,7.669,2111.0,2110.9,2.90695]
[1617436192419,2.571,2111.0,2110.9,2.90695]
[1617436193414,2.90695,2111.1,2110.9,2.90695]
[1617436202730,2.90695,2111.1,2110.0,1.6781]
[1617436203031,2.90695,2111.1,2109.4,4.97621521]
[1617436203633,2.90695,2111.1,2109.2,4.9764936]
[1617436204333,2.90695,2111.1,2108.5,7.1883645]
[1617436204334,2.90695,2111.1,2109.1,4.97428003]
[1617436204734,30.0,2111.1,2110.0,2.90695]
[1617436204936,32.0,2111.1,2110.0,2.90695]
[1617436205136,32.0,2111.1,2108.8,4.97506608]
[1617436205436,80.2738,2110.5,2108.8,4.97506608]
[1617436205638,80.2738,2110.5,2108.7,4.97509512]
[1617436206637,80.2738,2110.5,2109.7,2.90695]
[1617436208139,80.2738,2110.5,2108.7,4.97509512]
[1617436208639,80.2738,2110.5,2109.9,2.90695]
[1617436209039,2.2191,2110.5,2109.9,2.90695]
[1617436210643,13.711,2111.4,2110.3,2.90695]
[1617436210644,62.9237,2111.0,2110.3,2.90695]
[1617436212744,2.90695,2110.4,2110.3,2.90695]
[1617436214144,2.90695,2110.4,2109.0,4.97024896]
[1617436214344,4.49725,2110.4,2109.0,4.97024896]
[1617436214746,1.5903,2110.4,2110.1,2.90695]
[1617436216048,4.2169,2110.9,2110.1,2.90695]
[1617436216648,2.90695,2110.2,2110.1,2.90695]
[1617436216847,2.90695,2110.2,2108.8,4.97064051]
[1617436217348,2.90695,2110.2,2108.7,4.97091018]
[1617436217648,2.90695,2110.2,2108.6,4.97098475]
[1617436218649,78.5835,2110.3,2109.8,2.90695]
[1617436218849,78.5835,2110.3,2108.6,4.97098475]
[1617436219350,78.5835,2110.3,2108.7,4.97117798]
[1617436220750,78.5835,2110.3,2110.1,2.90695]
[1617436220952,1.5635,2110.3,2110.1,2.90695]
[1617436221451,1.5635,2110.3,2108.7,4.97117798]
[1617436221852,1.5635,2110.3,2108.7,4.97042143]
[1617436222053,74.4107,2110.6,2108.7,4.97042143]
[1617436222253,1.8081,2110.3,2108.7,4.97042143]
[1617436222753,1.8081,2110.3,2110.1,2.90695]
[1617436224659,2.90695,2110.2,2110.1,2.90695]
[1617436225857,2.90695,2110.2,2108.9,4.9735243]
[1617436226760,2.90695,2110.2,2110.1,2.90695]
[1617436235273,2.90695,2110.2,2109.4,4.97804926]
[1617436236572,2.90695,2110.2,2109.3,4.97823268]
[1617436236874,82.0797,2110.6,2109.9,2.90695]
[1617436237475,84.0797,2110.6,2109.9,2.90695]
[1617436238877,2.90695,2110.0,2109.9,2.90695]
[1617436244186,2.90695,2110.0,2109.2,4.97848644]
[1617436244988,2.90695,2110.0,2109.9,2.90695]
[1617436261208,2.90695,2110.0,2109.9,7.90549489]
[1617436262613,2.90695,2110.0,2109.9,4.99854489]
[1617436263012,2.90695,2110.0,2109.7,4.99933679]
[1617436263313,5.27425,2110.0,2109.5,4.99938473]
[1617436263713,82.84495,2110.0,2109.5,4.99938473]
[1617436265215,2.90695,2109.6,2109.5,4.99938473]
[1617436267623,2.90695,2109.6,2109.4,4.99689995]
[1617436271226,2.90695,2109.6,2109.5,7.90385321]
[1617436272430,2.90695,2109.6,2109.5,2.90695]
[1617436275329,2.90695,2109.6,2109.3,4.99686604]
[1617436275529,2.90695,2109.6,2109.2,4.99700404]
[1617436276030,2.90695,2109.6,2109.1,4.99729538]
[1617436276230,4.90695,2109.6,2109.0,4.99746214]
[1617436276633,4.90695,2109.6,2108.9,4.99751743]
[1617436277039,34.90695,2109.6,2108.8,4.99774666]
[1617436277336,4.79545,2109.0,2108.6,2.90695]
[1617436279238,2.90695,2108.7,2108.6,2.90695]
[1617436279437,2.90695,2108.7,2108.3,4.98833083]
[1617436280841,2.90695,2108.7,2108.2,4.98863326]
[1617436281240,2.90695,2108.3,2108.2,7.89558326]
[1617436281439,4.48845,2108.3,2108.2,7.89558326]
[1617436282640,1.5815,2108.3,2108.2,2.90695]
[1617436283040,1.8885,2109.0,2108.2,2.90695]
[1617436283342,2.571,2109.0,2108.6,2.90695]
[1617436284241,2.571,2109.0,2108.3,4.99070426]
[1617436284441,4.9127,2109.0,2108.3,4.99070426]
[1617436285343,4.9127,2109.0,2108.6,2.90695]
[1617436286241,4.9127,2109.0,2108.3,4.99070426]
[1617436287243,4.9127,2109.0,2108.4,2.90695]
[1617436289345,2.90695,2108.5,2108.4,2.90695]
[1617436293446,5.27115,2108.5,2108.4,2.90695]
[1617436306670,4.4347,2109.0,2107.9,4.98171843]
[1617436307270,78.8527,2109.0,2107.9,4.98171843]
[1617436307771,78.8527,2109.0,2108.2,2.90695]
[1617436307972,80.8527,2109.0,2108.2,2.90695]
[1617436309874,2.90695,2108.3,2108.2,2.90695]
[1617436321294,2.88868013,2108.3,2108.2,2.90695]
[1617436326598,2.88868013,2108.3,2108.2,4.69295]
[1617436326996,2.571,2109.0,2108.2,1.786]
[1617436327497,2.571,2109.0,2108.4,4.98361928]
[1617436327996,2.571,2109.0,2108.9,2.90695]
[1617436328196,2.571,2109.0,2108.9,4.81035]
[1617436330099,5.47795,2109.0,2108.9,4.81035]
[1617436331199,2.571,2109.0,2108.9,4.81035]
[1617436336108,5.47795,2109.0,2108.9,4.81035]
[1617436336809,2.571,2109.0,2108.9,4.81035]
[1617436337809,2.571,2109.0,2108.9,9.79756766]
[1617436338711,2.571,2109.0,2108.9,4.81035]
[1617436345323,2.571,2109.0,2108.9,9.79763357]
[1617436345726,2.571,2109.0,2108.9,10.90527572]
[1617436345925,1.0578,2109.0,2108.9,10.90527572]
[1617436346126,0.3499,2109.0,2108.9,4.94973016]
[1617436346327,5.098,2109.4,2108.9,4.94973016]
[1617436346527,10.57595,2110.5,2108.9,4.81035]
[1617436346727,10.57595,2110.5,2108.9,12.01321482]
[1617436346928,10.57595,2110.5,2109.7,4.98464082]
[1617436347129,10.57595,2110.5,2109.7,7.44914082]
[1617436347328,10.57595,2110.5,2109.8,4.98253116]
[1617436348134,10.57595,2110.5,2110.4,2.90695]
[1617436348332,10.57595,2110.5,2110.4,4.87415]
[1617436352536,2.90695,2110.5,2110.4,4.87415]
[1617436352736,2.90695,2110.5,2110.4,2.90695]
[1617436354237,2.90695,2110.5,2110.4,5.30465]
[1617436367456,15.4951,2112.0,2110.4,5.30465]
[1617436367656,13.4951,2112.0,2110.4,5.30465]
[1617436368357,13.4951,2112.0,2111.2,2.90695]
[1617436368558,13.4951,2112.0,2111.2,5.08595]
[1617436369257,13.4951,2112.0,2111.2,2.179]
[1617436369658,13.4951,2112.0,2109.8,1.8634]
[1617436369858,13.4951,2112.0,2108.8,4.95438133]
[1617436370158,13.4951,2112.0,2108.9,4.95537657]
[1617436370458,13.4951,2112.0,2110.8,4.44785]
[1617436372460,2.90695,2110.9,2110.8,4.44785]
[1617436372661,2.90695,2110.9,2110.8,2.90695]
[1617436372961,2.90695,2110.9,2108.9,4.95537657]
[1617436373161,2.90695,2110.9,2108.8,4.95607786]
[1617436374464,1.5368,2111.1,2110.5,2.90695]
[1617436376564,2.90695,2110.6,2110.5,2.90695]
[1617436377167,4.73945,2110.6,2110.5,2.90695]
[1617436377367,4.73945,2110.6,2108.7,4.95903617]
[1617436377771,4.73945,2110.6,2108.6,4.9593987]
[1617436378174,4.73945,2110.6,2108.5,4.96119503]
[1617436378375,4.73945,2110.6,2108.4,4.96045635]
[1617436378574,1.8325,2110.6,2109.5,2.90695]
[1617436380577,2.90695,2109.6,2109.5,2.90695]
[1617436381480,2.4853,2109.8,2108.6,4.96804647]
[1617436382480,2.4853,2109.8,2109.5,2.90695]
[1617436383480,5.0563,2109.8,2109.5,2.90695]
[1617436384583,2.90695,2109.6,2109.5,2.90695]
[1617436385283,2.571,2109.8,2109.5,2.90695]
[1617436386684,5.47795,2109.8,2109.5,2.90695]
[1617436388086,2.571,2109.8,2109.5,2.90695]
[1617436390789,5.47795,2109.8,2109.5,2.90695]
[1617436392489,2.90695,2109.8,2109.5,2.90695]
[1617436400301,5.30455,2109.8,2109.5,2.90695]
[1617436411722,5.30455,2109.8,2109.5,7.8898932]
[1617436412223,5.30455,2109.8,2109.5,2.90695]
[1617436425438,5.30455,2109.8,2109.5,7.87948448]
[1617436425638,2.90695,2109.8,2109.5,7.87948448]
[1617436426039,17.287,2110.6,2109.5,7.87948448]
[1617436426240,17.287,2110.6,2109.6,4.9712625]
[1617436427442,17.287,2110.6,2110.2,2.90695]
[1617436427641,15.287,2110.6,2110.2,2.90695]
[1617436429343,2.90695,2110.3,2110.2,2.90695]
[1617436432446,15.287,2110.6,2110.2,2.90695]
[1617436433349,18.19395,2110.6,2110.5,2.90695]
[1617436437351,18.19395,2110.6,2110.5,4.95275]
[1617436440553,7.618,2110.6,2110.5,4.95275]
[1617436441553,10.52495,2110.6,2110.5,4.95275]
[1617436444461,10.52495,2110.6,2110.5,2.90695]
[1617436445962,12.31595,2110.6,2109.9,4.95365983]
[1617436446662,12.31595,2110.6,2109.8,4.9613056]
[1617436446863,12.31595,2110.6,2109.7,4.9608584]
[1617436447464,2.90695,2109.8,2109.7,7.8678084]
[1617436447665,5.04345,2109.8,2109.7,7.8678084]
[1617436448366,5.04345,2109.8,2109.7,2.90695]
[1617436451172,5.04345,2109.8,2109.5,4.96481682]
[1617436452071,5.04345,2109.8,2109.3,8.97444815]
[1617436452072,5.04345,2109.8,2109.4,4.96716924]
[1617436452572,5.04345,2109.8,2109.3,7.87563285]
[1617436453675,2.90695,2109.4,2109.3,2.90695]
[1617436464380,2.90695,2109.4,2109.0,4.98908914]
[1617436464679,2.90695,2109.4,2108.9,4.99316497]
[1617436465281,2.90695,2109.4,2109.0,4.99312139]
[1617436465684,2.90695,2109.1,2109.0,4.99312139]
[1617436465885,2.90695,2109.1,2108.9,4.99331624]
[1617436466586,2.90695,2109.1,2109.0,4.99400688]
[1617436467689,2.90695,2109.1,2108.9,4.99399171]
[1617436468189,2.90695,2109.1,2108.8,4.99195044]
[1617436470596,2.90695,2109.1,2108.7,7.8996173]
[1617436471100,1.5443,2109.2,2108.7,7.8996173]
[1617436471300,6.7075,2109.8,2108.9,4.9919211]
[1617436471797,2.90695,2109.2,2109.0,2.90695]
[1617436473299,2.90695,2109.2,2109.0,7.89914493]
[1617436473698,2.90695,2109.2,2109.0,2.90695]
[1617436474200,2.90695,2109.2,2109.0,7.89913824]
[1617436474400,2.90695,2109.2,2109.0,2.90695]
[1617436474802,2.90695,2109.2,2109.0,7.89909671]
[1617436475402,2.90695,2109.2,2109.0,4.99214671]
[1617436475603,5.17635,2109.2,2108.9,4.99250709]
[1617436476102,5.17635,2109.2,2108.7,4.99270052]
[1617436477305,5.17635,2109.2,2108.6,4.99283736]
[1617436477802,2.90695,2108.7,2108.6,4.99283736]
[1617436478003,5.03585,2108.7,2108.6,4.99283736]
[1617436480103,5.03585,2108.7,2108.5,2.90695]
[1617436481405,5.03585,2108.7,2108.3,1.70787319]
[1617436481804,2.90695,2108.4,2108.0,2.90695]
[1617436483910,2.90695,2108.1,2108.0,2.90695]
[1617436504446,2.571,2108.7,2108.0,2.90695]
[1617436504746,2.571,2108.7,2108.0,5.17655]
[1617436505553,2.571,2108.7,2108.0,10.14135829]
[1617436505953,2.571,2108.7,2108.6,2.90695]
[1617436506152,2.571,2108.7,2108.6,5.15145]
[1617436508659,2.90695,2108.9,2108.6,5.15145]
[1617436509356,2.571,2109.6,2108.6,5.15145]
[1617436510157,2.571,2109.6,2109.3,2.90695]
[1617436510358,2.571,2109.6,2109.3,4.77505]
[1617436512158,2.90695,2109.4,2109.3,4.77505]
[1617436513161,2.90695,2109.4,2109.3,2.90695]
[1617436520875,2.0521,2110.2,2109.3,2.90695]
[1617436521077,2.571,2110.3,2109.3,2.90695]
[1617436522277,2.90695,2110.0,2109.6,2.90695]